[Event "*** SCC Grand Prix: Titled Tuesday Blitz"]
[Site "Chess.com"]
[Date "2020.08.25"]
[Round "6"]
[White "boasovietica"]
[Black "Haykoooo0o"]
[Result "0-1"]
[WhiteElo "2395"]
[BlackElo "2522"]
[TimeControl "180+1"]
[EndTime "11:09:10 PDT"]
[Termination "Haykoooo0o won by resignation"]

1. e4 {[%clk 0:03:00.9]} 1... c5 {[%clk 0:02:59.6]} 2. Nf3 {[%clk 0:03:00.5]}
2... e6 {[%clk 0:02:59.9]} 3. Nc3 {[%clk 0:03:00.5]} 3... a6 {[%clk 0:03:00]} 4.
g3 {[%clk 0:03:00.4]} 4... Qc7 {[%clk 0:02:59.5]} 5. Bg2 {[%clk 0:03:00.7]} 5...
b5 {[%clk 0:03:00.2]} 6. O-O {[%clk 0:03:01]} 6... Bb7 {[%clk 0:03:00.1]} 7. d3
{[%clk 0:03:01.7]} 7... d6 {[%clk 0:03:00.4]} 8. Ng5 {[%clk 0:03:01.4]} 8... h6
{[%clk 0:02:53.9]} 9. Nh3 {[%clk 0:02:51.1]} 9... Nf6 {[%clk 0:02:52.1]} 10. f4
{[%clk 0:02:51.1]} 10... Nbd7 {[%clk 0:02:52.1]} 11. Bd2 {[%clk 0:02:47.9]}
11... Be7 {[%clk 0:02:51.5]} 12. Qe2 {[%clk 0:02:42.5]} 12... O-O-O {[%clk
0:02:48.9]} 13. a4 {[%clk 0:02:34.4]} 13... b4 {[%clk 0:02:46.9]} 14. Nd1 {[%clk
0:02:34.9]} 14... Kb8 {[%clk 0:02:34.8]} 15. c3 {[%clk 0:02:33.5]} 15... a5
{[%clk 0:02:33.5]} 16. cxb4 {[%clk 0:02:30.6]} 16... cxb4 {[%clk 0:02:33.3]} 17.
Rc1 {[%clk 0:02:30.2]} 17... Qb6+ {[%clk 0:02:29.3]} 18. Be3 {[%clk 0:02:27.8]}
18... Qa6 {[%clk 0:02:27.4]} 19. Ndf2 {[%clk 0:02:13.4]} 19... Rc8 {[%clk
0:02:25]} 20. Qd2 {[%clk 0:01:59.2]} 20... Nc5 {[%clk 0:02:08.2]} 21. g4 {[%clk
0:01:17.9]} 21... Nxa4 {[%clk 0:01:35.1]} 22. d4 {[%clk 0:01:02.6]} 22... Nb6
{[%clk 0:01:13.7]} 23. b3 {[%clk 0:00:59.7]} 23... Rxc1 {[%clk 0:01:06.3]} 24.
Rxc1 {[%clk 0:00:59.2]} 24... Rc8 {[%clk 0:01:06.4]} 25. g5 {[%clk 0:00:41.4]}
25... Nfd7 {[%clk 0:01:00]} 26. Rxc8+ {[%clk 0:00:36.7]} 26... Nxc8 {[%clk
0:00:53.7]} 27. gxh6 {[%clk 0:00:34.9]} 27... gxh6 {[%clk 0:00:54.6]} 28. Bf1
{[%clk 0:00:23.4]} 28... Qc6 {[%clk 0:00:48.1]} 29. Bc4 {[%clk 0:00:18.4]} 29...
d5 {[%clk 0:00:46]} 30. exd5 {[%clk 0:00:15.9]} 30... exd5 {[%clk 0:00:46.9]}
31. Bd3 {[%clk 0:00:15.9]} 31... a4 {[%clk 0:00:42.9]} 32. bxa4 {[%clk 0:00:11]}
32... Qxa4 {[%clk 0:00:43.8]} 33. f5 {[%clk 0:00:07.6]} 33... b3 {[%clk
0:00:39.8]} 34. Nf4 {[%clk 0:00:04.5]} 34... Qa1+ {[%clk 0:00:38]} 35. Kg2
{[%clk 0:00:04.3]} 35... b2 {[%clk 0:00:36.8]} 36. Qc2 {[%clk 0:00:03.5]} 36...
Nf6 {[%clk 0:00:18.1]} 37. Qb3 {[%clk 0:00:02.5]} 37... Ne4 {[%clk 0:00:16]} 38.
Nxe4 {[%clk 0:00:02.2]} 38... dxe4 {[%clk 0:00:16.7]} 39. Bc2 {[%clk 0:00:02.6]}
39... Bd6 {[%clk 0:00:15.7]} 40. Nd5 {[%clk 0:00:02.5]} 40... b1=Q {[%clk
0:00:12.4]} 41. Qxb1 {[%clk 0:00:02.1]} 41... Qxb1 {[%clk 0:00:11.9]} 42. Bxb1
{[%clk 0:00:02.7]} 42... Bxd5 {[%clk 0:00:12.8]} 43. Bxh6 {[%clk 0:00:03.2]}
43... f6 {[%clk 0:00:13.1]} 44. Be3 {[%clk 0:00:02.6]} 44... Ne7 {[%clk
0:00:12.8]} 45. h4 {[%clk 0:00:01.7]} 45... Nxf5 {[%clk 0:00:13.2]} 46. Kf2
{[%clk 0:00:01.3]} 46... Nxh4 {[%clk 0:00:12.6]} 47. Ke2 {[%clk 0:00:01.1]}
47... Nf5 {[%clk 0:00:12.6]} 48. Bc2 {[%clk 0:00:01.6]} 48... Nxe3 {[%clk
0:00:12.7]} 49. Kxe3 {[%clk 0:00:02.5]} 49... f5 {[%clk 0:00:13]} 50. Bd1 {[%clk
0:00:02.3]} 50... Kc7 {[%clk 0:00:13.1]} 51. Bh5 {[%clk 0:00:02.1]} 51... f4+
{[%clk 0:00:12.6]} 0-1

[Event "*** SCC Grand Prix: Titled Tuesday Blitz"]
[Site "Chess.com"]
[Date "2020.08.25"]
[Round "6"]
[White "vladislavkovalev"]
[Black "attack2mateU"]
[Result "0-1"]
[WhiteElo "2869"]
[BlackElo "2714"]
[TimeControl "180+1"]
[EndTime "11:09:11 PDT"]
[Termination "attack2mateU won by resignation"]

1. e4 {[%clk 0:03:00.9]} 1... c5 {[%clk 0:02:59.6]} 2. Be2 {[%clk 0:03:01]} 2...
Nc6 {[%clk 0:02:58.3]} 3. d3 {[%clk 0:03:01.9]} 3... d5 {[%clk 0:02:55.1]} 4. f4
{[%clk 0:03:02.8]} 4... dxe4 {[%clk 0:02:54.4]} 5. dxe4 {[%clk 0:03:03.7]} 5...
Qxd1+ {[%clk 0:02:54.3]} 6. Bxd1 {[%clk 0:03:04.6]} 6... b6 {[%clk 0:02:44.7]}
7. c3 {[%clk 0:03:03.5]} 7... Bb7 {[%clk 0:02:45]} 8. Nf3 {[%clk 0:02:58.8]}
8... Nf6 {[%clk 0:02:34]} 9. Bc2 {[%clk 0:02:58.7]} 9... e6 {[%clk 0:02:24.4]}
10. Be3 {[%clk 0:02:53.8]} 10... Bd6 {[%clk 0:01:51.3]} 11. e5 {[%clk 0:02:48]}
11... Nd5 {[%clk 0:01:51]} 12. Bd2 {[%clk 0:02:44.7]} 12... Bc7 {[%clk 0:01:47]}
13. Na3 {[%clk 0:02:44.4]} 13... f6 {[%clk 0:01:40.1]} 14. O-O-O {[%clk
0:02:36.2]} 14... fxe5 {[%clk 0:01:28.1]} 15. Nb5 {[%clk 0:02:34.5]} 15... O-O-O
{[%clk 0:01:14.5]} 16. Nxc7 {[%clk 0:02:33.4]} 16... Kxc7 {[%clk 0:01:15.4]} 17.
fxe5 {[%clk 0:02:30.9]} 17... h6 {[%clk 0:01:15.4]} 18. Nh4 {[%clk 0:01:57.2]}
18... Nde7 {[%clk 0:01:05.6]} 19. Rhf1 {[%clk 0:01:48.1]} 19... Rhf8 {[%clk
0:01:05]} 20. Rde1 {[%clk 0:00:59.5]} 20... Ba6 {[%clk 0:01:04.3]} 21. Rxf8
{[%clk 0:00:52.8]} 21... Rxf8 {[%clk 0:01:05.2]} 22. Nf3 {[%clk 0:00:53.1]}
22... g5 {[%clk 0:01:01.4]} 23. h3 {[%clk 0:00:52.6]} 23... Nd5 {[%clk
0:01:01.1]} 24. Nh2 {[%clk 0:00:20.5]} 24... Rf2 {[%clk 0:00:57.5]} 25. Ng4
{[%clk 0:00:20.5]} 25... Rxg2 {[%clk 0:00:57.6]} 26. Nxh6 {[%clk 0:00:21.3]}
26... Nf4 {[%clk 0:00:53.9]} 27. h4 {[%clk 0:00:10.1]} 27... Ne2+ {[%clk
0:00:50.6]} 28. Kd1 {[%clk 0:00:10.3]} 28... gxh4 {[%clk 0:00:22.1]} 29. Be4
{[%clk 0:00:10.4]} 29... Rg7 {[%clk 0:00:11.6]} 30. Rxe2 {[%clk 0:00:07.4]}
30... Bxe2+ {[%clk 0:00:11.9]} 31. Kxe2 {[%clk 0:00:08.3]} 31... h3 {[%clk
0:00:12.4]} 32. Bf4 {[%clk 0:00:08.4]} 32... Ne7 {[%clk 0:00:06.5]} 33. Kf2
{[%clk 0:00:06]} 33... Nd5 {[%clk 0:00:04.9]} 34. Bh2 {[%clk 0:00:05]} 34... Kd8
{[%clk 0:00:02.7]} 35. Bf3 {[%clk 0:00:04.2]} 35... Ke7 {[%clk 0:00:02.7]} 36.
Ng4 {[%clk 0:00:04.5]} 36... c4 {[%clk 0:00:02.8]} 37. Kg3 {[%clk 0:00:04.6]}
37... b5 {[%clk 0:00:02.7]} 38. Kxh3 {[%clk 0:00:04.9]} 38... b4 {[%clk
0:00:02.5]} 39. Bxd5 {[%clk 0:00:04.4]} 39... exd5 {[%clk 0:00:02.7]} 40. cxb4
{[%clk 0:00:05.3]} 40... d4 {[%clk 0:00:02.6]} 41. Bf4 {[%clk 0:00:05.3]} 41...
c3 {[%clk 0:00:02.5]} 42. Kg3 {[%clk 0:00:06]} 42... cxb2 {[%clk 0:00:02.6]} 43.
Kf3 {[%clk 0:00:02.8]} 43... b1=Q {[%clk 0:00:02.9]} 44. Nf6 {[%clk 0:00:03.2]}
44... Qd3+ {[%clk 0:00:03]} 45. Kf2 {[%clk 0:00:03.8]} 45... Qf5 {[%clk
0:00:02.5]} 46. Kf3 {[%clk 0:00:03.8]} 46... Ke6 {[%clk 0:00:02.5]} 47. Ne4
{[%clk 0:00:03.5]} 47... Qh3+ {[%clk 0:00:01.9]} 48. Ng3 {[%clk 0:00:03.3]}
48... Rxg3+ {[%clk 0:00:02.4]} 49. Bxg3 {[%clk 0:00:04.2]} 49... Qh5+ {[%clk
0:00:01.6]} 50. Kg2 {[%clk 0:00:05.1]} 50... Qf5 {[%clk 0:00:02.3]} 51. Kg1
{[%clk 0:00:04.4]} 51... Qe4 {[%clk 0:00:03.2]} 52. Bf2 {[%clk 0:00:05.3]} 52...
d3 {[%clk 0:00:04.1]} 53. Kf1 {[%clk 0:00:06.1]} 53... Qe2+ {[%clk 0:00:04.6]}
54. Kg2 {[%clk 0:00:07]} 54... d2 {[%clk 0:00:05.4]} 55. Kg3 {[%clk 0:00:07.9]}
55... d1=Q {[%clk 0:00:05.7]} 56. Be3 {[%clk 0:00:08.8]} 56... Qdf1 {[%clk
0:00:06.3]} 0-1

[Event "*** SCC Grand Prix: Titled Tuesday Blitz"]
[Site "Chess.com"]
[Date "2020.08.25"]
[Round "6"]
[White "VincentKeymer"]
[Black "Korchmar_Vasiliy"]
[Result "1-0"]
[WhiteElo "2808"]
[BlackElo "2610"]
[TimeControl "180+1"]
[EndTime "11:09:11 PDT"]
[Termination "VincentKeymer won by resignation"]

1. Nf3 {[%clk 0:03:00.9]} 1... d5 {[%clk 0:02:59.8]} 2. e3 {[%clk 0:03:00.4]}
2... Nf6 {[%clk 0:02:58.8]} 3. c4 {[%clk 0:03:00.7]} 3... c6 {[%clk 0:02:59]} 4.
Nc3 {[%clk 0:03:01.2]} 4... e6 {[%clk 0:02:57.6]} 5. b3 {[%clk 0:03:01.1]} 5...
Nbd7 {[%clk 0:02:57.2]} 6. Bb2 {[%clk 0:03:01.1]} 6... Bd6 {[%clk 0:02:57.5]} 7.
Qc2 {[%clk 0:03:01.2]} 7... O-O {[%clk 0:02:57.4]} 8. Be2 {[%clk 0:03:01.5]}
8... Re8 {[%clk 0:02:53.7]} 9. O-O {[%clk 0:02:50.5]} 9... b6 {[%clk 0:02:51.9]}
10. cxd5 {[%clk 0:02:50]} 10... exd5 {[%clk 0:02:46.9]} 11. Rac1 {[%clk
0:02:43.5]} 11... Bb7 {[%clk 0:02:46.2]} 12. Rfd1 {[%clk 0:02:43.1]} 12... Rc8
{[%clk 0:02:40.5]} 13. Bf1 {[%clk 0:02:38.6]} 13... c5 {[%clk 0:02:35.8]} 14. d4
{[%clk 0:02:38]} 14... c4 {[%clk 0:02:22.1]} 15. g3 {[%clk 0:02:28.2]} 15... a6
{[%clk 0:02:19.6]} 16. a4 {[%clk 0:02:26.5]} 16... Bc6 {[%clk 0:01:18.6]} 17.
bxc4 {[%clk 0:02:02.2]} 17... dxc4 {[%clk 0:01:19.5]} 18. d5 {[%clk 0:02:02.4]}
18... Bb7 {[%clk 0:01:20.1]} 19. Bg2 {[%clk 0:02:01.9]} 19... Nc5 {[%clk
0:01:17.6]} 20. Nd4 {[%clk 0:02:01.8]} 20... Nd3 {[%clk 0:01:10.2]} 21. Rxd3
{[%clk 0:02:01.8]} 21... cxd3 {[%clk 0:01:11.1]} 22. Qxd3 {[%clk 0:02:02.6]}
22... Ng4 {[%clk 0:01:01]} 23. Qd1 {[%clk 0:01:32.5]} 23... Ne5 {[%clk
0:01:00.8]} 24. Ba1 {[%clk 0:01:28.7]} 24... Ba3 {[%clk 0:00:50.2]} 25. Rc2
{[%clk 0:01:27.3]} 25... Bf8 {[%clk 0:00:48.6]} 26. h3 {[%clk 0:01:25.2]} 26...
Qd7 {[%clk 0:00:39.5]} 27. Kh2 {[%clk 0:01:22.7]} 27... Rc7 {[%clk 0:00:37.2]}
28. e4 {[%clk 0:00:59.6]} 28... Rec8 {[%clk 0:00:36.3]} 29. Qb1 {[%clk
0:00:59.1]} 29... Nc4 {[%clk 0:00:33.4]} 30. Qb3 {[%clk 0:00:53]} 30... Na3
{[%clk 0:00:21.7]} 31. Rc1 {[%clk 0:00:50.5]} 31... Rc4 {[%clk 0:00:22]} 32. Nf5
{[%clk 0:00:45.8]} 32... g6 {[%clk 0:00:19]} 33. Ne3 {[%clk 0:00:45.7]} 33...
R4c7 {[%clk 0:00:17.3]} 34. e5 {[%clk 0:00:45.2]} 34... Nc4 {[%clk 0:00:11.6]}
35. Ne4 {[%clk 0:00:44.5]} 35... Nxe3 {[%clk 0:00:11.2]} 36. Nf6+ {[%clk
0:00:43.5]} 36... Kh8 {[%clk 0:00:09.2]} 37. Nxd7 {[%clk 0:00:39.3]} 37... Rxc1
{[%clk 0:00:09.4]} 38. Qxe3 {[%clk 0:00:37.1]} 38... Rxa1 {[%clk 0:00:09.1]} 39.
Nxf8 {[%clk 0:00:37.3]} 39... Rxf8 {[%clk 0:00:09]} 40. Qxb6 {[%clk 0:00:37.9]}
40... Ba8 {[%clk 0:00:08.7]} 41. Qxa6 {[%clk 0:00:37.8]} 41... Re1 {[%clk
0:00:08.1]} 42. h4 {[%clk 0:00:23.4]} 42... Kg8 {[%clk 0:00:08.1]} 43. f4 {[%clk
0:00:22.9]} 43... Rd1 {[%clk 0:00:07]} 44. Qe2 {[%clk 0:00:19.4]} 44... Rd4
{[%clk 0:00:06.7]} 45. Qe3 {[%clk 0:00:16.6]} 45... Rxa4 {[%clk 0:00:06.5]} 46.
Qb3 {[%clk 0:00:16.6]} 46... Rd4 {[%clk 0:00:06.4]} 47. Qc3 {[%clk 0:00:17]}
47... Rd1 {[%clk 0:00:05.8]} 48. d6 {[%clk 0:00:16.2]} 48... Bxg2 {[%clk
0:00:06]} 49. Kxg2 {[%clk 0:00:17.1]} 49... Rb1 {[%clk 0:00:05.6]} 50. h5 {[%clk
0:00:16.6]} 50... gxh5 {[%clk 0:00:05.1]} 51. Qd3 {[%clk 0:00:16.5]} 51... Rb2+
{[%clk 0:00:05.1]} 52. Kh3 {[%clk 0:00:16.9]} 52... Kg7 {[%clk 0:00:05.1]} 53.
Qf5 {[%clk 0:00:13.8]} 53... Re8 {[%clk 0:00:05.6]} 54. Qg5+ {[%clk 0:00:13.3]}
54... Kf8 {[%clk 0:00:05.3]} 55. d7 {[%clk 0:00:13.2]} 1-0

[Event "*** SCC Grand Prix: Titled Tuesday Blitz"]
[Site "Chess.com"]
[Date "2020.08.25"]
[Round "6"]
[White "Aygehovit1992"]
[Black "anon102030"]
[Result "0-1"]
[WhiteElo "2605"]
[BlackElo "2737"]
[TimeControl "180+1"]
[EndTime "11:09:11 PDT"]
[Termination "anon102030 won by resignation"]

1. e4 {[%clk 0:02:43.6]} 1... e5 {[%clk 0:02:57.8]} 2. Nf3 {[%clk 0:02:41.6]}
2... Nc6 {[%clk 0:02:58]} 3. Bb5 {[%clk 0:02:42]} 3... Nge7 {[%clk 0:02:57.6]}
4. Nc3 {[%clk 0:02:41.1]} 4... d6 {[%clk 0:02:57.6]} 5. d4 {[%clk 0:02:38.8]}
5... Bd7 {[%clk 0:02:57.7]} 6. Be3 {[%clk 0:02:35.4]} 6... Ng6 {[%clk
0:02:56.2]} 7. h4 {[%clk 0:02:31.3]} 7... h5 {[%clk 0:02:44.8]} 8. Bxc6 {[%clk
0:02:28.4]} 8... Bxc6 {[%clk 0:02:40.7]} 9. Qd3 {[%clk 0:02:27.9]} 9... Be7
{[%clk 0:02:33.7]} 10. O-O-O {[%clk 0:02:24.5]} 10... Nxh4 {[%clk 0:02:25.2]}
11. Nxh4 {[%clk 0:02:12.9]} 11... Bxh4 {[%clk 0:02:26.1]} 12. dxe5 {[%clk
0:02:09.2]} 12... dxe5 {[%clk 0:02:18]} 13. Qe2 {[%clk 0:01:29.7]} 13... Qe7
{[%clk 0:02:11]} 14. g3 {[%clk 0:01:28.5]} 14... Bf6 {[%clk 0:02:06.4]} 15. Rxh5
{[%clk 0:01:26.9]} 15... Rxh5 {[%clk 0:02:04.3]} 16. Qxh5 {[%clk 0:01:27.8]}
16... g6 {[%clk 0:02:04.6]} 17. Qh7 {[%clk 0:01:20.9]} 17... Rd8 {[%clk
0:02:01.2]} 18. Qg8+ {[%clk 0:01:20]} 18... Qf8 {[%clk 0:01:59.9]} 19. Qxf8+
{[%clk 0:01:20.3]} 19... Kxf8 {[%clk 0:02:00.8]} 20. Rxd8+ {[%clk 0:01:20.1]}
20... Bxd8 {[%clk 0:02:01.5]} 21. Bxa7 {[%clk 0:01:18.6]} 21... b6 {[%clk
0:01:55.9]} 22. a4 {[%clk 0:01:14.5]} 22... Bg5+ {[%clk 0:01:44.4]} 23. Kd1
{[%clk 0:01:11.7]} 23... Ke7 {[%clk 0:01:40]} 24. b4 {[%clk 0:01:11.2]} 24...
Kd7 {[%clk 0:01:35.8]} 25. a5 {[%clk 0:01:11.3]} 25... bxa5 {[%clk 0:01:29.7]}
26. bxa5 {[%clk 0:01:10.8]} 26... Bb7 {[%clk 0:01:28.6]} 27. Bc5 {[%clk
0:00:53.9]} 27... Bc8 {[%clk 0:01:07.2]} 28. Ke2 {[%clk 0:00:49.4]} 28... Kc6
{[%clk 0:01:06.3]} 29. Be3 {[%clk 0:00:48.9]} 29... Bd8 {[%clk 0:00:58.5]} 30.
f4 {[%clk 0:00:42.3]} 30... exf4 {[%clk 0:00:55]} 31. gxf4 {[%clk 0:00:43.2]}
31... Kb7 {[%clk 0:00:49.7]} 32. Bd2 {[%clk 0:00:30.2]} 32... Ka6 {[%clk
0:00:50]} 33. Nd5 {[%clk 0:00:29.2]} 33... c6 {[%clk 0:00:46.8]} 34. Nb4+ {[%clk
0:00:28.4]} 34... Kb5 {[%clk 0:00:47]} 35. c4+ {[%clk 0:00:26.8]} 35... Kxc4
{[%clk 0:00:40.3]} 36. Nxc6 {[%clk 0:00:26.6]} 36... Bc7 {[%clk 0:00:40.3]} 37.
Ne7 {[%clk 0:00:18.9]} 37... Ba6 {[%clk 0:00:37.8]} 38. Kf3 {[%clk 0:00:18.1]}
38... Bb7 {[%clk 0:00:33]} 39. Ke3 {[%clk 0:00:13.6]} 39... Bd6 {[%clk
0:00:33.1]} 40. Nd5 {[%clk 0:00:06]} 40... Bc5+ {[%clk 0:00:34]} 41. Kf3 {[%clk
0:00:05.5]} 41... f5 {[%clk 0:00:25]} 42. Ne3+ {[%clk 0:00:02.4]} 42... Kd3
{[%clk 0:00:18.7]} 43. Bc1 {[%clk 0:00:02.6]} 43... fxe4+ {[%clk 0:00:14.1]} 44.
Kf2 {[%clk 0:00:03]} 44... Ba7 {[%clk 0:00:12.7]} 45. Kg3 {[%clk 0:00:01.2]}
45... Bxe3 {[%clk 0:00:09.8]} 46. Bxe3 {[%clk 0:00:02.1]} 46... Kxe3 {[%clk
0:00:10.3]} 47. Kg4 {[%clk 0:00:03]} 47... Kf2 {[%clk 0:00:08.9]} 48. Kg5 {[%clk
0:00:03.9]} 48... e3 {[%clk 0:00:08.4]} 49. a6 {[%clk 0:00:04.8]} 49... Bxa6
{[%clk 0:00:07.3]} 50. f5 {[%clk 0:00:05]} 50... gxf5 {[%clk 0:00:06.4]} 0-1

[Event "*** SCC Grand Prix: Titled Tuesday Blitz"]
[Site "Chess.com"]
[Date "2020.08.25"]
[Round "6"]
[White "Chessdreamer2020"]
[Black "Caterpiller35"]
[Result "0-1"]
[WhiteElo "2471"]
[BlackElo "2357"]
[TimeControl "180+1"]
[EndTime "11:09:11 PDT"]
[Termination "Caterpiller35 won by checkmate"]

1. e4 {[%clk 0:03:00.9]} 1... c5 {[%clk 0:02:59.9]} 2. Nf3 {[%clk 0:03:00.7]}
2... Nc6 {[%clk 0:03:00.2]} 3. Bb5 {[%clk 0:03:00.4]} 3... g6 {[%clk 0:02:59.1]}
4. O-O {[%clk 0:03:00.1]} 4... Bg7 {[%clk 0:02:59.1]} 5. c3 {[%clk 0:03:00.6]}
5... Nf6 {[%clk 0:02:59.1]} 6. Qa4 {[%clk 0:03:01]} 6... O-O {[%clk 0:02:57.7]}
7. d4 {[%clk 0:03:01.2]} 7... d5 {[%clk 0:02:44.4]} 8. e5 {[%clk 0:02:59.1]}
8... Ne4 {[%clk 0:02:41]} 9. Bxc6 {[%clk 0:02:58.3]} 9... bxc6 {[%clk
0:02:40.9]} 10. Qxc6 {[%clk 0:02:52.4]} 10... Bg4 {[%clk 0:02:40.3]} 11. Nbd2
{[%clk 0:02:46.9]} 11... Rc8 {[%clk 0:02:37.7]} 12. Qa6 {[%clk 0:02:45.6]} 12...
cxd4 {[%clk 0:02:34]} 13. cxd4 {[%clk 0:02:44.5]} 13... f6 {[%clk 0:02:17.8]}
14. exf6 {[%clk 0:02:29]} 14... Rxf6 {[%clk 0:02:04]} 15. Qxa7 {[%clk
0:02:20.5]} 15... Rc2 {[%clk 0:01:19.4]} 16. Qa4 {[%clk 0:02:06.5]} 16... Qc8
{[%clk 0:01:01.6]} 17. Ne5 {[%clk 0:01:58.6]} 17... Be2 {[%clk 0:00:43.5]} 18.
Nxe4 {[%clk 0:01:54.9]} 18... Bxf1 {[%clk 0:00:27.2]} 19. Nxf6+ {[%clk
0:01:51.4]} 19... exf6 {[%clk 0:00:28.1]} 20. Bf4 {[%clk 0:01:22.4]} 20... fxe5
{[%clk 0:00:22.1]} 21. Bxe5 {[%clk 0:01:22.3]} 21... Bxe5 {[%clk 0:00:09]} 22.
dxe5 {[%clk 0:01:23.2]} 22... Rc1 {[%clk 0:00:07.1]} 23. Rxc1 {[%clk 0:01:19.6]}
23... Qxc1 {[%clk 0:00:08]} 24. Qe8+ {[%clk 0:01:19.7]} 24... Kg7 {[%clk
0:00:07.5]} 25. Qe7+ {[%clk 0:01:20.1]} 25... Kg8 {[%clk 0:00:06.9]} 26. Qe8+
{[%clk 0:01:19]} 26... Kg7 {[%clk 0:00:06.9]} 27. Qe7+ {[%clk 0:01:19]} 27...
Kg8 {[%clk 0:00:05.1]} 28. h3 {[%clk 0:01:15.2]} 28... Bd3+ {[%clk 0:00:04.2]}
29. Kh2 {[%clk 0:01:14.9]} 29... Qf4+ {[%clk 0:00:03.3]} 30. Kg1 {[%clk
0:01:15]} 30... Be4 {[%clk 0:00:02.9]} 31. Qe8+ {[%clk 0:01:12.9]} 31... Kg7
{[%clk 0:00:03]} 32. Qe7+ {[%clk 0:01:12.7]} 32... Kh6 {[%clk 0:00:03.1]} 33.
Qf6 {[%clk 0:01:11.1]} 33... Qxf6 {[%clk 0:00:01.4]} 34. exf6 {[%clk 0:01:12]}
34... d4 {[%clk 0:00:01.6]} 35. f3 {[%clk 0:01:08.5]} 35... Bd5 {[%clk
0:00:01.8]} 36. a4 {[%clk 0:01:07.7]} 36... Kg5 {[%clk 0:00:02]} 37. Kf2 {[%clk
0:01:07.6]} 37... Kxf6 {[%clk 0:00:02.3]} 38. b4 {[%clk 0:01:07.8]} 38... Ke5
{[%clk 0:00:02.5]} 39. Ke2 {[%clk 0:01:07.9]} 39... Bc4+ {[%clk 0:00:02.1]} 40.
Kd2 {[%clk 0:01:07.3]} 40... Kd5 {[%clk 0:00:02.7]} 41. g3 {[%clk 0:01:05.4]}
41... Bf1 {[%clk 0:00:02.5]} 42. h4 {[%clk 0:01:05.1]} 42... Bg2 {[%clk
0:00:02.8]} 43. f4 {[%clk 0:01:04.9]} 43... Kc4 {[%clk 0:00:03.1]} 44. h5 {[%clk
0:01:04]} 44... gxh5 {[%clk 0:00:03.1]} 45. a5 {[%clk 0:01:03.1]} 45... Kxb4
{[%clk 0:00:02.7]} 46. a6 {[%clk 0:01:03.3]} 46... Kc4 {[%clk 0:00:03.1]} 47. a7
{[%clk 0:01:02.3]} 47... Ba8 {[%clk 0:00:02.3]} 48. f5 {[%clk 0:01:01.5]} 48...
Kd5 {[%clk 0:00:02.3]} 49. Kd3 {[%clk 0:01:01.8]} 49... Ke5 {[%clk 0:00:02.4]}
50. f6 {[%clk 0:01:00.7]} 50... Kxf6 {[%clk 0:00:02.8]} 51. Kxd4 {[%clk
0:01:01.6]} 51... Kg5 {[%clk 0:00:03.7]} 52. Ke3 {[%clk 0:01:02.5]} 52... Kg4
{[%clk 0:00:04.6]} 53. Kf2 {[%clk 0:01:02.1]} 53... Bf3 {[%clk 0:00:04.3]} 54.
Ke3 {[%clk 0:00:57.4]} 54... Kxg3 {[%clk 0:00:04.4]} 55. Kd4 {[%clk 0:00:57.1]}
55... h4 {[%clk 0:00:04.6]} 56. Ke5 {[%clk 0:00:58]} 56... h3 {[%clk 0:00:04.9]}
57. Kf6 {[%clk 0:00:58.9]} 57... h2 {[%clk 0:00:05.2]} 58. Kg7 {[%clk
0:00:59.8]} 58... h1=Q {[%clk 0:00:05.6]} 59. Kf7 {[%clk 0:00:59]} 59... Qa1
{[%clk 0:00:05.9]} 60. Ke6 {[%clk 0:00:59.9]} 60... Qxa7 {[%clk 0:00:06.2]} 61.
Kd6 {[%clk 0:00:59.9]} 61... Qf7 {[%clk 0:00:06.1]} 62. Ke5 {[%clk 0:01:00.8]}
62... Qf4+ {[%clk 0:00:05.8]} 63. Ke6 {[%clk 0:00:59.9]} 63... h5 {[%clk
0:00:06.7]} 64. Ke7 {[%clk 0:00:59.8]} 64... h4 {[%clk 0:00:07.6]} 65. Ke6
{[%clk 0:01:00.7]} 65... h3 {[%clk 0:00:08.5]} 66. Kd7 {[%clk 0:01:01.6]} 66...
h2 {[%clk 0:00:09.4]} 67. Ke7 {[%clk 0:01:02.5]} 67... h1=Q {[%clk 0:00:10.3]}
68. Kd7 {[%clk 0:01:03.4]} 68... Qd1+ {[%clk 0:00:10]} 69. Ke6 {[%clk
0:01:03.5]} 69... Qe2+ {[%clk 0:00:10.4]} 70. Kd7 {[%clk 0:01:03.2]} 70... Qd4+
{[%clk 0:00:10.9]} 71. Kc8 {[%clk 0:01:04.1]} 71... Qc2+ {[%clk 0:00:11.6]} 72.
Kb8 {[%clk 0:01:03.5]} 72... Qb4+ {[%clk 0:00:12.5]} 73. Ka7 {[%clk 0:01:03.7]}
73... Qa2# {[%clk 0:00:13.4]} 0-1